[Event "Titled Tuesday Blitz February 07 Early 2023"]
[White "Ivic, Velimir"]
[Black "Sourath Biswas"]
[WhiteFideId "950122"]
[BlackFideId "35091484"]
[WhiteElo "2595"]
[BlackElo "2281"]
[Result "1-0"]
[Round "04"]
[TimeControl "180+2"]
[Date "2023.02.07"]
[WhiteClock "0:01:12"]
[BlackClock "0:00:13"]

1. d4 {[%clk 0:02:52]}  Nf6 {[%clk 0:02:58]} 2. c4 {[%clk 0:02:51]}  g6 {[%clk 0:02:42]} 3. Nc3 {[%clk 0:02:51]}  Bg7 {[%clk 0:02:42]} 4. e4 {[%clk 0:02:51]}  O-O {[%clk 0:02:42]} 5. Be2 {[%clk 0:02:51]}  d6 {[%clk 0:02:28]} 6. Be3 {[%clk 0:02:50]}  e5 {[%clk 0:02:24]} 7. Nf3 {[%clk 0:02:49]}  Nbd7 {[%clk 0:02:16]} 8. O-O {[%clk 0:02:48]}  Ng4 {[%clk 0:02:13]} 9. Bg5 {[%clk 0:02:48]}  f6 {[%clk 0:02:13]} 10. Bc1 {[%clk 0:02:48]}  h5 {[%clk 0:02:08]} 11. Rb1 {[%clk 0:02:44]}  a5 {[%clk 0:02:08]} 12. a3 {[%clk 0:02:43]}  g5 {[%clk 0:01:50]} 13. b4 {[%clk 0:02:33]}  axb4 {[%clk 0:01:50]} 14. axb4 {[%clk 0:02:33]}  Rf7 {[%clk 0:01:48]} 15. c5 {[%clk 0:02:33]}  Kh7 {[%clk 0:01:47]} 16. dxe5 {[%clk 0:02:16]}  dxe5 {[%clk 0:01:30]} 17. Ne1 {[%clk 0:02:08]}  c6 {[%clk 0:01:03]} 18. h3 {[%clk 0:02:05]}  Nh6 {[%clk 0:01:03]} 19. Bxh5 {[%clk 0:02:06]}  Re7 {[%clk 0:01:00]} 20. Nc2 {[%clk 0:02:02]}  Qg8 {[%clk 0:00:46]} 21. Ne3 {[%clk 0:02:00]}  Nf8 {[%clk 0:00:46]} 22. Bg4 {[%clk 0:01:53]}  Be6 {[%clk 0:00:46]} 23. Qe2 {[%clk 0:01:48]}  Ng6 {[%clk 0:00:37]} 24. g3 {[%clk 0:01:47]}  Rd8 {[%clk 0:00:34]} 25. Kg2 {[%clk 0:01:43]}  Rd4 {[%clk 0:00:32]} 26. Nf5 {[%clk 0:01:34]}  Bxf5 {[%clk 0:00:27]} 27. exf5 {[%clk 0:01:30]}  Nf8 {[%clk 0:00:27]} 28. Be3 {[%clk 0:01:28]}  Rd8 {[%clk 0:00:21]} 29. Rfd1 {[%clk 0:01:23]}  Red7 {[%clk 0:00:21]} 30. Bf3 {[%clk 0:01:20]}  Kh8 {[%clk 0:00:18]} 31. Be4 {[%clk 0:01:18]}  Qf7 {[%clk 0:00:18]} 32. h4 {[%clk 0:01:14]}  gxh4 {[%clk 0:00:18]} 33. Rh1 {[%clk 0:01:14]}  Nh7 {[%clk 0:00:16]} 34. Rxh4 {[%clk 0:01:14]}  Ng5 {[%clk 0:00:17]} 35. Rbh1 {[%clk 0:01:11]}  Kh7 {[%clk 0:00:16]} 36. Bxg5 {[%clk 0:01:11]}  fxg5 {[%clk 0:00:16]} 37. f6+ {[%clk 0:01:12]}  Kg8 {[%clk 0:00:13]} 38. Rxh6 {[%clk 0:01:12]} 1-0


[Site "https://www.chess.com"]

[Event "Titled Tuesday Blitz February 07 Early 2023"]
[White "Plazuelo Pascual, Juan"]
[Black "Harsha Bharathakoti"]
[WhiteFideId "32059566"]
[BlackFideId "5078776"]
[WhiteElo "2449"]
[BlackElo "2602"]
[Result "1-0"]
[Round "04"]
[TimeControl "180+2"]
[Date "2023.02.07"]
[WhiteClock "0:00:21"]
[BlackClock "0:00:02"]

1. e4 {[%clk 0:03:00]}  g6 {[%clk 0:03:00]} 2. d4 {[%clk 0:03:00]}  Bg7 {[%clk 0:03:00]} 3. Nc3 {[%clk 0:03:01]}  d6 {[%clk 0:03:01]} 4. Be3 {[%clk 0:03:01]}  a6 {[%clk 0:03:01]} 5. g4 {[%clk 0:03:00]}  b5 {[%clk 0:03:00]} 6. Bg2 {[%clk 0:02:57]}  Bb7 {[%clk 0:02:59]} 7. h4 {[%clk 0:02:57]}  h6 {[%clk 0:02:53]} 8. g5 {[%clk 0:02:55]}  hxg5 {[%clk 0:02:41]} 9. hxg5 {[%clk 0:02:54]}  Rxh1 {[%clk 0:02:39]} 10. Bxh1 {[%clk 0:02:55]}  e6 {[%clk 0:02:40]} 11. f4 {[%clk 0:02:42]}  Ne7 {[%clk 0:02:39]} 12. Qg4 {[%clk 0:02:36]}  Nd7 {[%clk 0:02:38]} 13. O-O-O {[%clk 0:02:33]}  Nb6 {[%clk 0:02:38]} 14. Nge2 {[%clk 0:02:23]}  Qd7 {[%clk 0:02:22]} 15. Bf2 {[%clk 0:02:05]}  b4 {[%clk 0:02:20]} 16. Nb1 {[%clk 0:02:03]}  O-O-O {[%clk 0:02:05]} 17. a3 {[%clk 0:01:43]}  a5 {[%clk 0:01:59]} 18. d5 {[%clk 0:01:09]}  exd5 {[%clk 0:01:55]} 19. Qxd7+ {[%clk 0:01:10]}  Kxd7 {[%clk 0:01:38]} 20. Bxb6 {[%clk 0:01:09]}  cxb6 {[%clk 0:01:39]} 21. exd5 {[%clk 0:01:09]}  Rh8 {[%clk 0:01:25]} 22. axb4 {[%clk 0:01:07]}  axb4 {[%clk 0:01:26]} 23. Nd2 {[%clk 0:01:03]}  Nf5 {[%clk 0:01:13]} 24. Nc4 {[%clk 0:00:55]}  Ba6 {[%clk 0:01:11]} 25. b3 {[%clk 0:00:48]}  Bxc4 {[%clk 0:01:11]} 26. bxc4 {[%clk 0:00:48]}  Ne3 {[%clk 0:01:01]} 27. Rg1 {[%clk 0:00:46]}  Nxc4 {[%clk 0:00:54]} 28. Kd1 {[%clk 0:00:23]}  Ra8 {[%clk 0:00:49]} 29. Ke1 {[%clk 0:00:24]}  Ra2 {[%clk 0:00:46]} 30. Be4 {[%clk 0:00:23]}  Ne3 {[%clk 0:00:31]} 31. Kd2 {[%clk 0:00:15]}  Nxc2 {[%clk 0:00:24]} 32. Nc1 {[%clk 0:00:15]}  Bc3+ {[%clk 0:00:10]} 33. Kd3 {[%clk 0:00:16]}  Rb2 {[%clk 0:00:10]} 34. f5 {[%clk 0:00:15]}  Ne1+ {[%clk 0:00:08]} 35. Kc4 {[%clk 0:00:15]}  gxf5 {[%clk 0:00:07]} 36. Bxf5+ {[%clk 0:00:15]}  Ke7 {[%clk 0:00:07]} 37. g6 {[%clk 0:00:16]}  fxg6 {[%clk 0:00:04]} 38. Rxg6 {[%clk 0:00:17]}  Nf3 {[%clk 0:00:04]} 39. Re6+ {[%clk 0:00:17]}  Kf7 {[%clk 0:00:03]} 40. Rxd6 {[%clk 0:00:17]}  Ne5+ {[%clk 0:00:02]} 41. Kb5 {[%clk 0:00:18]}  Rf2 {[%clk 0:00:02]} 42. Be6+ {[%clk 0:00:18]}  Ke7 {[%clk 0:00:03]} 43. Rxb6 {[%clk 0:00:19]}  Rf1 {[%clk 0:00:02]} 44. Nb3 {[%clk 0:00:19]}  Rb1 {[%clk 0:00:02]} 45. Nc5 {[%clk 0:00:19]}  b3 {[%clk 0:00:03]} 46. Rb7+ {[%clk 0:00:20]}  Kd8 {[%clk 0:00:01]} 47. Rb8+ {[%clk 0:00:20]}  Ke7 {[%clk 0:00:01]} 48. Rb7+ {[%clk 0:00:20]}  Ke8 {[%clk 0:00:02]} 49. d6 {[%clk 0:00:21]} 1-0


[Site "https://www.chess.com"]

[Event "Titled Tuesday Blitz February 07 Early 2023"]
[White "Ordekalog"]
[Black "Grigorjev, Iljya"]
[BlackFideId "24159565"]
[WhiteElo "2555"]
[BlackElo "2426"]
[Result "0-1"]
[Round "04"]
[TimeControl "180+2"]
[Date "2023.02.07"]
[WhiteClock "0:00:03"]
[BlackClock "0:00:30"]

1. e4 {[%clk 0:03:00]}  e5 {[%clk 0:02:59]} 2. Nf3 {[%clk 0:03:00]}  Nc6 {[%clk 0:03:00]} 3. Bb5 {[%clk 0:03:00]}  a6 {[%clk 0:03:01]} 4. Bxc6 {[%clk 0:03:00]}  dxc6 {[%clk 0:03:00]} 5. O-O {[%clk 0:03:00]}  Ne7 {[%clk 0:03:00]} 6. Nxe5 {[%clk 0:02:58]}  Qd4 {[%clk 0:02:59]} 7. Nd3 {[%clk 0:02:57]}  Qxe4 {[%clk 0:02:59]} 8. Nc3 {[%clk 0:02:56]}  Qg6 {[%clk 0:02:58]} 9. Nf4 {[%clk 0:02:55]}  Qf5 {[%clk 0:02:49]} 10. d3 {[%clk 0:02:52]}  Bd7 {[%clk 0:02:47]} 11. Re1 {[%clk 0:02:50]}  O-O-O {[%clk 0:02:48]} 12. Ne4 {[%clk 0:02:43]}  Ng6 {[%clk 0:02:43]} 13. Qf3 {[%clk 0:02:19]}  f6 {[%clk 0:02:31]} 14. h3 {[%clk 0:02:12]}  Ne5 {[%clk 0:02:17]} 15. Qg3 {[%clk 0:02:07]}  h5 {[%clk 0:02:13]} 16. d4 {[%clk 0:01:59]}  h4 {[%clk 0:02:11]} 17. Qb3 {[%clk 0:01:57]}  Ng6 {[%clk 0:02:09]} 18. Nxg6 {[%clk 0:01:52]}  Qxg6 {[%clk 0:02:09]} 19. Bf4 {[%clk 0:01:47]}  Bf5 {[%clk 0:02:04]} 20. Nc5 {[%clk 0:01:23]}  Bxc5 {[%clk 0:02:04]} 21. dxc5 {[%clk 0:01:24]}  Rhe8 {[%clk 0:01:56]} 22. Qc3 {[%clk 0:01:04]}  Be4 {[%clk 0:01:51]} 23. f3 {[%clk 0:01:01]}  Bxc2 {[%clk 0:01:33]} 24. Rxe8 {[%clk 0:00:59]}  Rxe8 {[%clk 0:01:32]} 25. Qa5 {[%clk 0:00:57]}  Re7 {[%clk 0:01:23]} 26. Rc1 {[%clk 0:00:48]}  Bf5 {[%clk 0:01:21]} 27. Kh2 {[%clk 0:00:42]}  Qf7 {[%clk 0:01:22]} 28. Rd1 {[%clk 0:00:39]}  g5 {[%clk 0:01:18]} 29. Bd6 {[%clk 0:00:29]}  cxd6 {[%clk 0:01:05]} 30. cxd6 {[%clk 0:00:29]}  Re5 {[%clk 0:01:06]} 31. Qb6 {[%clk 0:00:29]}  Qd7 {[%clk 0:00:49]} 32. Qa7 {[%clk 0:00:28]}  Kd8 {[%clk 0:00:49]} 33. f4 {[%clk 0:00:17]}  gxf4 {[%clk 0:00:47]} 34. Qb8+ {[%clk 0:00:15]}  Qc8 {[%clk 0:00:47]} 35. Qa7 {[%clk 0:00:16]}  Kd7 {[%clk 0:00:43]} 36. Qd4 {[%clk 0:00:14]}  Qg8 {[%clk 0:00:35]} 37. Qb4 {[%clk 0:00:02]}  Qg3+ {[%clk 0:00:30]} 38. Kh1 {[%clk 0:00:03]}  b5 {[%clk 0:00:30]} 0-1


[Site "https://www.chess.com"]

[Event "Titled Tuesday Blitz February 07 Early 2023"]
[White "Borges Feria, Yasel"]
[Black "Baghdasaryan, Vahe"]
[WhiteFideId "3504921"]
[BlackFideId "13303139"]
[WhiteElo "2439"]
[BlackElo "2257"]
[Result "1-0"]
[Round "04"]
[TimeControl "180+2"]
[Date "2023.02.07"]
[WhiteClock "0:00:25"]
[BlackClock "0:00:06"]

1. d4 {[%clk 0:02:59]}  d5 {[%clk 0:02:59]} 2. c4 {[%clk 0:02:59]}  c6 {[%clk 0:03:00]} 3. Nf3 {[%clk 0:02:59]}  Nf6 {[%clk 0:02:59]} 4. Qc2 {[%clk 0:02:57]}  dxc4 {[%clk 0:02:54]} 5. Qxc4 {[%clk 0:02:58]}  Bf5 {[%clk 0:02:54]} 6. g3 {[%clk 0:02:58]}  e6 {[%clk 0:02:54]} 7. Bg2 {[%clk 0:02:59]}  Be7 {[%clk 0:02:54]} 8. O-O {[%clk 0:02:59]}  O-O {[%clk 0:02:54]} 9. Rd1 {[%clk 0:02:59]}  Nbd7 {[%clk 0:02:54]} 10. e3 {[%clk 0:03:00]}  Bg6 {[%clk 0:02:52]} 11. Qe2 {[%clk 0:03:00]}  Qc7 {[%clk 0:02:44]} 12. Nc3 {[%clk 0:03:01]}  Rfe8 {[%clk 0:02:43]} 13. e4 {[%clk 0:02:54]}  e5 {[%clk 0:02:43]} 14. dxe5 {[%clk 0:02:13]}  Nxe5 {[%clk 0:02:43]} 15. Nxe5 {[%clk 0:02:14]}  Qxe5 {[%clk 0:02:43]} 16. Bf4 {[%clk 0:02:14]}  Qa5 {[%clk 0:02:37]} 17. f3 {[%clk 0:02:12]}  Bb4 {[%clk 0:02:33]} 18. Bd2 {[%clk 0:02:06]}  Rad8 {[%clk 0:01:54]} 19. Kh1 {[%clk 0:02:03]}  Nd5 {[%clk 0:01:52]} 20. Rac1 {[%clk 0:01:44]}  Bxc3 {[%clk 0:01:42]} 21. Bxc3 {[%clk 0:01:16]}  Qxa2 {[%clk 0:01:41]} 22. Qd2 {[%clk 0:01:06]}  Qb3 {[%clk 0:00:34]} 23. exd5 {[%clk 0:00:55]}  Rxd5 {[%clk 0:00:35]} 24. Re1 {[%clk 0:00:55]}  Red8 {[%clk 0:00:31]} 25. Qe2 {[%clk 0:00:49]}  f6 {[%clk 0:00:31]} 26. f4 {[%clk 0:00:39]}  R5d6 {[%clk 0:00:31]} 27. Bf1 {[%clk 0:00:35]}  Bf7 {[%clk 0:00:29]} 28. Qf2 {[%clk 0:00:34]}  a5 {[%clk 0:00:28]} 29. Kg1 {[%clk 0:00:34]}  a4 {[%clk 0:00:28]} 30. Qc2 {[%clk 0:00:31]}  b5 {[%clk 0:00:27]} 31. Qxb3 {[%clk 0:00:31]}  Bxb3 {[%clk 0:00:28]} 32. Bb4 {[%clk 0:00:30]}  Rd4 {[%clk 0:00:22]} 33. Ba5 {[%clk 0:00:31]}  Ra8 {[%clk 0:00:16]} 34. Bb6 {[%clk 0:00:30]}  Rd2 {[%clk 0:00:13]} 35. Re2 {[%clk 0:00:28]}  Rxe2 {[%clk 0:00:08]} 36. Bxe2 {[%clk 0:00:29]}  Bd5 {[%clk 0:00:08]} 37. Bc5 {[%clk 0:00:28]}  Rb8 {[%clk 0:00:07]} 38. Bd1 {[%clk 0:00:28]}  Re8 {[%clk 0:00:05]} 39. Kf2 {[%clk 0:00:27]}  Re4 {[%clk 0:00:05]} 40. Bf3 {[%clk 0:00:26]}  Rc4 {[%clk 0:00:05]} 41. Rxc4 {[%clk 0:00:25]}  Bxc4 {[%clk 0:00:05]} 42. Bxc6 {[%clk 0:00:25]}  Kf7 {[%clk 0:00:06]} 43. Ke3 {[%clk 0:00:25]}  Ke6 {[%clk 0:00:06]} 44. Kd4 {[%clk 0:00:25]}  Bf1 {[%clk 0:00:06]} 45. Bd5+ {[%clk 0:00:23]}  Kd7 {[%clk 0:00:05]} 46. Be4 {[%clk 0:00:23]}  g6 {[%clk 0:00:06]} 47. Bb4 {[%clk 0:00:24]}  f5 {[%clk 0:00:06]} 48. Bd5 {[%clk 0:00:24]}  h6 {[%clk 0:00:05]} 49. Kc5 {[%clk 0:00:24]}  g5 {[%clk 0:00:06]} 50. Bc6+ {[%clk 0:00:25]}  Ke6 {[%clk 0:00:06]} 51. Bxb5 {[%clk 0:00:25]}  gxf4 {[%clk 0:00:06]} 52. Bxf1 {[%clk 0:00:25]} 1-0


[Site "https://www.chess.com"]

[Event "Titled Tuesday Blitz February 07 Early 2023"]
[White "Tarlabasi, Emirhan"]
[Black "Lobanov, Sergei"]
[WhiteFideId "6350275"]
[BlackFideId "24183750"]
[WhiteElo "2300"]
[BlackElo "2536"]
[Result "0-1"]
[Round "04"]
[TimeControl "180+2"]
[Date "2023.02.07"]
[WhiteClock "0:00:03"]
[BlackClock "0:00:20"]

1. d4 {[%clk 0:03:00]}  Nf6 {[%clk 0:02:59]} 2. c4 {[%clk 0:03:00]}  e6 {[%clk 0:03:00]} 3. Nf3 {[%clk 0:03:00]}  d5 {[%clk 0:02:59]} 4. Nc3 {[%clk 0:02:58]}  Nbd7 {[%clk 0:03:00]} 5. Bf4 {[%clk 0:02:57]}  Bb4 {[%clk 0:02:59]} 6. e3 {[%clk 0:02:41]}  Ne4 {[%clk 0:02:59]} 7. Rc1 {[%clk 0:02:38]}  g5 {[%clk 0:02:59]} 8. Bg3 {[%clk 0:02:35]}  h5 {[%clk 0:02:59]} 9. h4 {[%clk 0:02:33]}  Nxg3 {[%clk 0:02:56]} 10. fxg3 {[%clk 0:02:33]}  gxh4 {[%clk 0:02:43]} 11. Rxh4 {[%clk 0:02:25]}  Qf6 {[%clk 0:02:30]} 12. cxd5 {[%clk 0:02:12]}  exd5 {[%clk 0:02:29]} 13. a3 {[%clk 0:02:11]}  Bd6 {[%clk 0:02:24]} 14. Nxd5 {[%clk 0:01:57]}  Bxg3+ {[%clk 0:02:23]} 15. Kd2 {[%clk 0:01:52]}  Qd8 {[%clk 0:01:59]} 16. Re4+ {[%clk 0:01:51]}  Kf8 {[%clk 0:01:56]} 17. Bd3 {[%clk 0:01:38]}  c6 {[%clk 0:01:54]} 18. Nf4 {[%clk 0:01:01]}  Nf6 {[%clk 0:01:54]} 19. Re5 {[%clk 0:00:54]}  Bg4 {[%clk 0:01:54]} 20. Qc2 {[%clk 0:00:41]}  Nd7 {[%clk 0:00:57]} 21. Rg5 {[%clk 0:00:27]}  Bxf3 {[%clk 0:00:55]} 22. Rxg3 {[%clk 0:00:26]}  Bg4 {[%clk 0:00:48]} 23. Rf1 {[%clk 0:00:26]}  Nf6 {[%clk 0:00:48]} 24. Qc5+ {[%clk 0:00:23]}  Qe7 {[%clk 0:00:49]} 25. Qe5 {[%clk 0:00:11]}  Rg8 {[%clk 0:00:33]} 26. Ne6+ {[%clk 0:00:03]}  Qxe6 {[%clk 0:00:28]} 27. Qxe6 {[%clk 0:00:03]}  Bxe6 {[%clk 0:00:20]} 0-1


[Site "https://www.chess.com"]

[Event "Titled Tuesday Blitz February 07 Early 2023"]
[White "Acor, Corey"]
[Black "Taboas Rodriguez, Daniel"]
[WhiteFideId "2024861"]
[BlackFideId "2208466"]
[WhiteElo "2216"]
[BlackElo "2371"]
[Result "1-0"]
[Round "04"]
[TimeControl "180+2"]
[Date "2023.02.07"]
[WhiteClock "0:00:20"]
[BlackClock "0:00:02"]

1. e4 {[%clk 0:03:00]}  e5 {[%clk 0:02:59]} 2. Nc3 {[%clk 0:02:59]}  Nf6 {[%clk 0:02:59]} 3. g3 {[%clk 0:03:00]}  Nc6 {[%clk 0:02:58]} 4. Bg2 {[%clk 0:03:00]}  Bc5 {[%clk 0:02:59]} 5. d3 {[%clk 0:03:00]}  d6 {[%clk 0:02:59]} 6. Na4 {[%clk 0:02:52]}  Bg4 {[%clk 0:02:38]} 7. Nf3 {[%clk 0:02:50]}  Nd4 {[%clk 0:02:32]} 8. Nxc5 {[%clk 0:02:47]}  dxc5 {[%clk 0:02:32]} 9. h3 {[%clk 0:02:43]}  Bxf3 {[%clk 0:02:28]} 10. Bxf3 {[%clk 0:02:44]}  Qd6 {[%clk 0:02:25]} 11. Bg2 {[%clk 0:02:42]}  O-O-O {[%clk 0:02:24]} 12. b3 {[%clk 0:02:40]}  h5 {[%clk 0:02:15]} 13. O-O {[%clk 0:02:39]}  h4 {[%clk 0:02:14]} 14. g4 {[%clk 0:02:39]}  Ne6 {[%clk 0:02:08]} 15. Qf3 {[%clk 0:02:19]}  Rdf8 {[%clk 0:01:50]} 16. Be3 {[%clk 0:02:08]}  Ng8 {[%clk 0:01:44]} 17. Rfd1 {[%clk 0:01:52]}  Ne7 {[%clk 0:01:43]} 18. c3 {[%clk 0:01:48]}  Nc6 {[%clk 0:01:32]} 19. a3 {[%clk 0:01:37]}  f6 {[%clk 0:01:24]} 20. b4 {[%clk 0:01:37]}  Rd8 {[%clk 0:01:24]} 21. Qf5 {[%clk 0:01:27]}  Kb8 {[%clk 0:01:24]} 22. bxc5 {[%clk 0:01:20]}  Nxc5 {[%clk 0:01:24]} 23. d4 {[%clk 0:01:20]}  Nb3 {[%clk 0:01:19]} 24. Rab1 {[%clk 0:01:18]}  Qxa3 {[%clk 0:01:10]} 25. Qe6 {[%clk 0:01:07]}  Nca5 {[%clk 0:00:23]} 26. dxe5 {[%clk 0:01:06]}  Rhe8 {[%clk 0:00:22]} 27. Rxd8+ {[%clk 0:01:03]}  Rxd8 {[%clk 0:00:23]} 28. exf6 {[%clk 0:01:01]}  gxf6 {[%clk 0:00:23]} 29. Qxf6 {[%clk 0:01:01]}  Qf8 {[%clk 0:00:18]} 30. e5 {[%clk 0:00:48]}  Qe8 {[%clk 0:00:04]} 31. g5 {[%clk 0:00:40]}  Nd2 {[%clk 0:00:04]} 32. Bxd2 {[%clk 0:00:35]}  Rxd2 {[%clk 0:00:05]} 33. g6 {[%clk 0:00:29]}  Re2 {[%clk 0:00:02]} 34. Qf3 {[%clk 0:00:20]} 1-0


[Site "https://www.chess.com"]

[Event "Titled Tuesday Blitz February 07 Early 2023"]
[White "Perez Gormaz, Matias"]
[Black "Rakhmatullaev, Almas"]
[WhiteFideId "3406342"]
[BlackFideId "14205793"]
[WhiteElo "2406"]
[BlackElo "2275"]
[Result "0-1"]
[Round "04"]
[TimeControl "180+2"]
[Date "2023.02.07"]
[WhiteClock "0:00:07"]
[BlackClock "0:00:06"]

1. Nf3 {[%clk 0:03:00]}  Nf6 {[%clk 0:02:59]} 2. g3 {[%clk 0:03:00]}  g6 {[%clk 0:03:00]} 3. b3 {[%clk 0:03:01]}  Bg7 {[%clk 0:03:01]} 4. Bb2 {[%clk 0:03:02]}  O-O {[%clk 0:03:02]} 5. Bg2 {[%clk 0:03:02]}  d6 {[%clk 0:03:02]} 6. d4 {[%clk 0:03:03]}  Nbd7 {[%clk 0:03:02]} 7. O-O {[%clk 0:03:03]}  Rb8 {[%clk 0:03:03]} 8. Re1 {[%clk 0:03:01]}  b5 {[%clk 0:03:01]} 9. e4 {[%clk 0:03:02]}  Bb7 {[%clk 0:02:59]} 10. Nbd2 {[%clk 0:03:01]}  e6 {[%clk 0:02:57]} 11. a4 {[%clk 0:03:00]}  a6 {[%clk 0:02:55]} 12. Bf1 {[%clk 0:02:58]}  b4 {[%clk 0:02:45]} 13. Bg2 {[%clk 0:02:52]}  Re8 {[%clk 0:02:41]} 14. Rc1 {[%clk 0:02:48]}  h5 {[%clk 0:02:27]} 15. c3 {[%clk 0:02:47]}  bxc3 {[%clk 0:02:19]} 16. Bxc3 {[%clk 0:02:47]}  c5 {[%clk 0:02:13]} 17. Ba1 {[%clk 0:02:07]}  Ba8 {[%clk 0:01:59]} 18. e5 {[%clk 0:01:58]}  Nd5 {[%clk 0:01:14]} 19. Nc4 {[%clk 0:01:57]}  dxe5 {[%clk 0:01:10]} 20. dxe5 {[%clk 0:01:57]}  Nb4 {[%clk 0:01:01]} 21. Nd6 {[%clk 0:01:55]}  Re7 {[%clk 0:01:02]} 22. Re2 {[%clk 0:01:34]}  Bd5 {[%clk 0:01:01]} 23. Ng5 {[%clk 0:01:13]}  Bh6 {[%clk 0:00:28]} 24. h4 {[%clk 0:01:05]}  Rb6 {[%clk 0:00:17]} 25. Nc4 {[%clk 0:00:56]}  Rb8 {[%clk 0:00:14]} 26. Bxd5 {[%clk 0:00:32]}  exd5 {[%clk 0:00:10]} 27. Nd6 {[%clk 0:00:31]}  Nf8 {[%clk 0:00:07]} 28. Rxc5 {[%clk 0:00:27]}  Bxg5 {[%clk 0:00:05]} 29. hxg5 {[%clk 0:00:28]}  Ne6 {[%clk 0:00:06]} 30. Rc1 {[%clk 0:00:24]}  Nxg5 {[%clk 0:00:07]} 31. Re3 {[%clk 0:00:17]}  Qd7 {[%clk 0:00:04]} 32. Bc3 {[%clk 0:00:09]}  Nc6 {[%clk 0:00:03]} 33. Qxd5 {[%clk 0:00:09]}  Nd8 {[%clk 0:00:03]} 34. Rd1 {[%clk 0:00:09]}  Nde6 {[%clk 0:00:03]} 35. Ba1 {[%clk 0:00:08]}  Rd8 {[%clk 0:00:02]} 36. Red3 {[%clk 0:00:07]}  Nh3+ {[%clk 0:00:03]} 37. Kg2 {[%clk 0:00:07]}  Nhf4+ {[%clk 0:00:03]} 38. gxf4 {[%clk 0:00:07]}  Nxf4+ {[%clk 0:00:04]} 39. Kf1 {[%clk 0:00:08]}  Nxd5 {[%clk 0:00:05]} 40. Rxd5 {[%clk 0:00:08]}  Qg4 {[%clk 0:00:05]} 41. R5d4 {[%clk 0:00:06]}  Qh3+ {[%clk 0:00:05]} 42. Ke2 {[%clk 0:00:06]}  Qxb3 {[%clk 0:00:05]} 43. R1d3 {[%clk 0:00:06]}  Qa2+ {[%clk 0:00:05]} 44. Rd2 {[%clk 0:00:05]}  Qxa1 {[%clk 0:00:05]} 45. f4 {[%clk 0:00:06]}  Qc3 {[%clk 0:00:04]} 46. Ne4 {[%clk 0:00:06]}  Qxd4 {[%clk 0:00:05]} 47. Rxd4 {[%clk 0:00:06]}  Rxd4 {[%clk 0:00:05]} 48. Nf6+ {[%clk 0:00:07]}  Kg7 {[%clk 0:00:06]} 0-1


[Site "https://www.chess.com"]

[Event "Titled Tuesday Blitz February 07 Early 2023"]
[White "Hirneise, Jens"]
[Black "Kukhmazov, Arsen"]
[WhiteFideId "24614734"]
[BlackFideId "24108260"]
[WhiteElo "2277"]
[BlackElo "2512"]
[Result "0-1"]
[Round "04"]
[TimeControl "180+2"]
[Date "2023.02.07"]
[WhiteClock "0:00:02"]
[BlackClock "0:00:09"]

1. c4 {[%clk 0:03:00]}  c6 {[%clk 0:02:58]} 2. Nc3 {[%clk 0:02:58]}  d5 {[%clk 0:02:59]} 3. e3 {[%clk 0:02:57]}  Nf6 {[%clk 0:02:59]} 4. Nf3 {[%clk 0:02:57]}  e6 {[%clk 0:02:54]} 5. b3 {[%clk 0:02:53]}  Bd6 {[%clk 0:02:55]} 6. Bb2 {[%clk 0:02:54]}  e5 {[%clk 0:02:47]} 7. cxd5 {[%clk 0:02:51]}  cxd5 {[%clk 0:02:48]} 8. Nb5 {[%clk 0:02:49]}  Nc6 {[%clk 0:02:49]} 9. Nxd6+ {[%clk 0:02:47]}  Qxd6 {[%clk 0:02:49]} 10. Bb5 {[%clk 0:02:47]}  e4 {[%clk 0:02:48]} 11. Ne5 {[%clk 0:02:45]}  O-O {[%clk 0:02:48]} 12. Bxc6 {[%clk 0:02:35]}  bxc6 {[%clk 0:02:49]} 13. Rc1 {[%clk 0:02:28]}  Bb7 {[%clk 0:02:39]} 14. Qc2 {[%clk 0:02:25]}  Rfc8 {[%clk 0:02:34]} 15. Qc5 {[%clk 0:02:16]}  Qe6 {[%clk 0:02:34]} 16. h3 {[%clk 0:02:09]}  Ne8 {[%clk 0:02:20]} 17. f4 {[%clk 0:01:54]}  h5 {[%clk 0:02:16]} 18. g4 {[%clk 0:01:50]}  h4 {[%clk 0:01:45]} 19. f5 {[%clk 0:01:46]}  Qd6 {[%clk 0:01:45]} 20. O-O {[%clk 0:01:34]}  Ba6 {[%clk 0:01:42]} 21. Rf4 {[%clk 0:01:31]}  Bb7 {[%clk 0:01:21]} 22. g5 {[%clk 0:01:30]}  Qxc5 {[%clk 0:01:20]} 23. Rxc5 {[%clk 0:01:30]}  Nd6 {[%clk 0:01:19]} 24. f6 {[%clk 0:01:26]}  g6 {[%clk 0:01:18]} 25. Rxh4 {[%clk 0:01:20]}  a5 {[%clk 0:01:16]} 26. Ng4 {[%clk 0:01:12]}  Nf5 {[%clk 0:01:12]} 27. Nh6+ {[%clk 0:01:11]}  Nxh6 {[%clk 0:01:13]} 28. Rxh6 {[%clk 0:01:10]}  Ba6 {[%clk 0:01:09]} 29. Kf2 {[%clk 0:01:05]}  a4 {[%clk 0:01:07]} 30. b4 {[%clk 0:01:05]}  a3 {[%clk 0:01:00]} 31. Bxa3 {[%clk 0:00:56]}  Bb5 {[%clk 0:01:01]} 32. Bb2 {[%clk 0:00:54]}  Rxa2 {[%clk 0:00:59]} 33. Bc3 {[%clk 0:00:55]}  Rc2 {[%clk 0:00:47]} 34. h4 {[%clk 0:00:49]}  Rc1 {[%clk 0:00:47]} 35. h5 {[%clk 0:00:46]}  gxh5 {[%clk 0:00:35]} 36. Rxh5 {[%clk 0:00:29]}  Rf1+ {[%clk 0:00:34]} 37. Kg2 {[%clk 0:00:29]}  Rf5 {[%clk 0:00:34]} 38. Kg3 {[%clk 0:00:28]}  Rf3+ {[%clk 0:00:26]} 39. Kg2 {[%clk 0:00:22]}  Ra8 {[%clk 0:00:21]} 40. Rh1 {[%clk 0:00:19]}  Ra2 {[%clk 0:00:20]} 41. Ra1 {[%clk 0:00:14]}  Rxa1 {[%clk 0:00:20]} 42. Bxa1 {[%clk 0:00:15]}  Rf5 {[%clk 0:00:21]} 43. Kg3 {[%clk 0:00:14]}  Rxg5+ {[%clk 0:00:21]} 44. Kf4 {[%clk 0:00:14]}  Rg2 {[%clk 0:00:20]} 45. Bc3 {[%clk 0:00:14]}  Kh7 {[%clk 0:00:19]} 46. Ke5 {[%clk 0:00:14]}  Kg6 {[%clk 0:00:20]} 47. Kd6 {[%clk 0:00:15]}  Kf5 {[%clk 0:00:20]} 48. Rxc6 {[%clk 0:00:13]}  Bxc6 {[%clk 0:00:21]} 49. Kxc6 {[%clk 0:00:14]}  d4 {[%clk 0:00:18]} 50. exd4 {[%clk 0:00:13]}  Kxf6 {[%clk 0:00:19]} 51. d5+ {[%clk 0:00:11]}  Kf5 {[%clk 0:00:08]} 52. Kd7 {[%clk 0:00:06]}  e3 {[%clk 0:00:03]} 53. dxe3 {[%clk 0:00:06]}  Ke4 {[%clk 0:00:03]} 54. d6 {[%clk 0:00:05]}  f5 {[%clk 0:00:03]} 55. b5 {[%clk 0:00:04]}  Kxe3 {[%clk 0:00:03]} 56. b6 {[%clk 0:00:04]}  Rc2 {[%clk 0:00:02]} 57. b7 {[%clk 0:00:04]}  Rxc3 {[%clk 0:00:03]} 58. b8=Q {[%clk 0:00:05]}  f4 {[%clk 0:00:03]} 59. Qb6+ {[%clk 0:00:03]}  Ke2 {[%clk 0:00:04]} 60. Qd4 {[%clk 0:00:03]}  Rf3 {[%clk 0:00:04]} 61. Kc7 {[%clk 0:00:02]}  Rf1 {[%clk 0:00:03]} 62. d7 {[%clk 0:00:02]}  Rc1+ {[%clk 0:00:04]} 63. Kb6 {[%clk 0:00:03]}  f3 {[%clk 0:00:05]} 64. d8=Q {[%clk 0:00:02]}  Rb1+ {[%clk 0:00:06]} 65. Kc5 {[%clk 0:00:02]}  Re1 {[%clk 0:00:07]} 66. Qd3+ {[%clk 0:00:02]}  Kf2 {[%clk 0:00:07]} 67. Q8d4+ {[%clk 0:00:02]}  Kg2 {[%clk 0:00:08]} 68. Qg7+ {[%clk 0:00:02]}  Kf2 {[%clk 0:00:09]} 69. Qd2+ {[%clk 0:00:02]}  Kf1 {[%clk 0:00:09]} 0-1


[Site "https://www.chess.com"]